Cogmind - Beta 14 *** ADVENTURER MODE // 2024.08.19 @ 14:42:06 Player: LegoMDS Result: Destroyed by S-10 Pest with Light Assault Rifle Performance ------------- Evolutions (1) 500 Regions Visited (6) 1200 Robots Destroyed (27) 135 Value Destroyed (551) 551 Prototype IDs (23) 460 Alien Tech Used (0) 0 Bonus (335) 335 TOTAL SCORE: 3181 Bonus ------- Follower Combat Kills 35 Aligned with FarCom 300 Cogmind --------- Core Integrity 0/400 Matter 292/300 Energy 123/125 System Corruption 7% Temperature Cool (0) Movement Flying (37) Location -8/Mines Parts ------- > --- POWER (1) -------- Light Ion Engine > --- PROPULSION (4) --- Flight Unit Flight Unit > --- UTILITY (2) ------ Improved Heat Sink > --- WEAPON (2) ------- Light Assault Rifle Heavy Assault Rifle > --- INVENTORY (5) ---- Light Nuclear Core ECM Suite Cloak of Protection Propulsion Shielding Mining Claw Peak State ------------ > --- POWER ------------ Light Ion Engine > --- PROPULSION ------- Flight Unit Flight Unit Flight Unit > --- UTILITY ---------- Improved Heat Sink Improved Heat Sink > --- WEAPON ----------- Light Assault Rifle Heavy Assault Rifle > --- INVENTORY -------- Light Nuclear Core ECM Suite Cloak of Protection Propulsion Shielding Mining Claw [Rating: 14] Favorites ----------- Power Light Ion Engine Engine Light Ion Engine Power Core Light Nuclear Core Propulsion Flight Unit Flight Unit Flight Unit Utility Improved Heat Sink Device Improved Heat Sink Processor Targeting Computer Protection Propulsion Shielding Weapon Shotgun Energy Gun Medium Laser Ballistic Gun Shotgun Launcher Rocket Launcher Special Weapon Mining Laser Slashing Weapon Mining Claw Build | -11 -10 -10 -9 -9 -9 -8 ------- Run | Yrd Mat Min Mat Min Exi Min Slots Evolved 2 | . . . 2 . . . Power . | . . . . . . . Propulsion 2 | . . . 2 . . . Utility . | . . . . . . . Weapon . | . . . . . . . Parts Attached 38 | 2 8 1 7 11 1 8 Power 6 | . 1 . 2 . 1 2 Engine 5 | . 1 . 2 . 1 1 Core 1 | . . . . . . 1 Reactor . | . . . . . . . Propulsion 7 | . 2 . 2 . . 3 Treads . | . . . . . . . Leg . | . . . . . . . Wheel . | . . . . . . . Hover . | . . . . . . . Flight 7 | . 2 . 2 . . 3 Utility 7 | . . 1 2 3 . 1 Device 5 | . . . 1 3 . 1 Storage . | . . . . . . . Processor 1 | . . 1 . . . . Hackware . | . . . . . . . Protection 1 | . . . 1 . . . Artifact . | . . . . . . . Weapon 18 | 2 5 . 1 8 . 2 Energy Gun 6 | 2 2 . 1 1 . . Energy Cannon . | . . . . . . . Ballistic Gun 5 | . 2 . . 1 . 2 Ballistic Cannon . | . . . . . . . Launcher 4 | . 1 . . 3 . . Special Weapon 2 | . . . . 2 . . Impact Weapon . | . . . . . . . Slashing Weapon 1 | . . . . 1 . . Piercing Weapon . | . . . . . . . Special Melee Weapon . | . . . . . . . Unidentified Prototypes . | . . . . . . . Parts Lost 15 | . . . . 13 . 2 Power 1 | . . . . 1 . . Propulsion 5 | . . . . 4 . 1 Utility 4 | . . . . 3 . 1 Weapon 5 | . . . . 5 . . Highest Loss Streak 12 | . . . . 12 . 2 To Critical Strikes . | . . . . . . . Average Slot Usage (%) 48 | . 27 80 89 46 31 70 Engine 7 | . 3 14 11 4 9 11 Flight 15 | . 6 28 44 16 . 27 Device 5 | . . . . 4 11 12 Processor 3 | . . 9 11 4 . . Protection 1 | . . . . 2 . . Energy Gun 5 | . 14 14 11 2 . . Ballistic Gun 6 | . 2 14 11 5 . 20 Special Weapon 1 | . . . . 3 . . Slashing Weapon 2 | . . . . 1 11 . Peak Build Rating 14 | 2 6 7 12 13 6 14 Average Rating 5 | . 2 6 9 6 5 10 On Entrance 5 | . 1 6 7 12 4 6 Naked Turns 57 | . . . . 57 . . Heaviest Build 15 | 2 8 8 14 15 6 9 Greatest Support 16 | 3 8 8 16 16 3 12 Greatest Overweight (x) 2 | . . . . 1 1 2 Average Overweight (x) . | . . . . . . . Largest Inventory Capacity 5 | 5 5 5 5 5 5 5 Average Capacity 5 | 5 5 5 5 5 5 5 Most Carried 5 | 4 5 5 5 5 5 5 Average Carried 4 | 2 4 4 4 4 4 5 Final Capacity 5 | 5 5 5 5 5 5 5 Final Carried 5 | 3 5 5 4 5 5 5 Class Distribution -------------------- 72% | Mutant 22% | Sprinter 5% | Scavenger-Mutant Dominant Class ---------------- Mutant | -10/Materials Mutant | -10/Mines Sprinter | -9/Materials Mutant | -9/Mines Mutant | -9/Exiles Scavenger-Mutant | -8/Mines Resources | -11 -10 -10 -9 -9 -9 -8 ----------- Run | Yrd Mat Min Mat Min Exi Min Matter Collected 798 | 220 64 66 84 180 . 184 Remotely . | . . . . . . . Salvage Created 724 | . 220 37 123 122 . 222 Parts 49 | . 16 5 12 2 . 14 Haulers Intercepted . | . . . . . . . Recyclers Shooed 1 | . 1 . . . . . Parts Field Recycled . | . . . . . . . Retrieved Matter . | . . . . . . . Parts Self-Destructed . | . . . . . . . Prevented . | . . . . . . . Kills | -11 -10 -10 -9 -9 -9 -8 ------- Run | Yrd Mat Min Mat Min Exi Min Combat Hostiles Destroyed 28 | . 7 3 5 7 . 6 Guns 26 | . 5 3 5 7 . 6 AOE 2 | . 2 . . . . . Classes Destroyed 7 | . 4 . 1 1 . 1 Worker 2 | . 1 . . . . 1 Watcher 3 | . 2 . 1 . . . Swarmer 13 | . 3 3 4 . . 3 Grunt 7 | . 4 . . 1 . 2 Brawler 1 | . . . . . . 1 Sentry 1 | . . . 1 . . . Assembled 6 | . . . . 6 . . Best Kill Streak 5 | . 5 3 4 4 . 4 Combat Bots Only 4 | . 4 3 4 4 . 3 Max Kills in Single Turn 2 | . 2 1 2 1 . 2 Gunslinging 1 | . . . 1 . . . Exploded 1 | . 1 . . . . . Melee . | . . . . . . . Uniques/NPCs Destroyed . | . . . . . . . Combat | -11 -10 -10 -9 -9 -9 -8 -------- Run | Yrd Mat Min Mat Min Exi Min Hostile Shots Fired 125 | . 33 13 8 34 . 37 Missed 59 | . 14 8 5 13 . 19 Damage Taken 1281 | . 151 31 22 865 . 212 Core 512 | . 92 17 . 331 . 72 Absorbed by Shields . | . . . . . . . Redirected to Shielding 2 | . . . . 2 . . Ignored by Resistances 318 | . 50 10 7 190 . 61 Core Remaining (%) 78 | 100 . 56 . . . . Volleys Fired 85 | . 26 5 6 26 . 22 Largest 2 | . 1 2 2 2 . 2 Hottest 100 | . 50 73 79 100 . 43 Shots Fired 131 | . 26 10 12 41 . 42 Gun 117 | . 24 10 12 29 . 42 Cannon . | . . . . . . . Launcher 7 | . 2 . . 5 . . Special 7 | . . . . 7 . . Kinetic 69 | . . 5 6 16 . 42 Thermal 55 | . 24 5 6 20 . . Explosive 7 | . 2 . . 5 . . Electromagnetic . | . . . . . . . Robot Hit Streak 12 | . 10 7 11 10 . 12 Robot Miss Streak 2 | . 1 2 1 2 . 2 Penetration Max . | . . . . . . . Secondary Targets 4 | . . 1 2 . . 1 Max Gunslinging Chain 1 | . . 1 1 . . 1 Shots Hit Robots 104 | . 20 9 9 32 . 34 Core Hits 57 | . 13 3 7 20 . 14 Critical Kills 1 | . . 1 . . . . Critical Parts Destroyed . | . . . . . . . Critical Strikes 3 | . . 1 1 1 . . Burn 2 | . . . 1 1 . . Destroy 1 | . . 1 . . . . Melee Attacks 2 | . . . . 2 . . Impact . | . . . . . . . Slashing 2 | . . . . 2 . . Piercing . | . . . . . . . Sneak Attacks . | . . . . . . . Combat Hostiles . | . . . . . . . Follow-up Attacks . | . . . . . . . Damage Inflicted 1688 | . 493 121 144 504 . 426 Guns 1328 | . 235 121 144 402 . 426 Cannons . | . . . . . . . Explosions 285 | . 258 . . 27 . . Melee 47 | . . . . 47 . . Ramming . | . . . . . . . Kinetic 827 | . . 72 74 255 . 426 Thermal 529 | . 235 49 70 175 . . Explosive 285 | . 258 . . 27 . . Electromagnetic . | . . . . . . . Impact . | . . . . . . . Slashing 47 | . . . . 47 . . Piercing . | . . . . . . . Highest Corruption 7 | . . . . 4 4 7 Average Corruption 4 | . . . . 3 4 4 Corruption Purged . | . . . . . . . Corruption Blocked . | . . . . . . . Effects 18 | . . . . 6 10 2 Message Errors 5 | . . . . 2 3 . Matter Fused 4 | . . . . 1 2 1 Heat Flow Errors 3 | . . . . . 2 1 Energy Discharges 2 | . . . . 1 1 . Data Loss (minor) 2 | . . . . 2 . . Data Loss (major) 1 | . . . . . 1 . Alerts 1 | . . . . . 1 . Overload Shots . | . . . . . . . Overflow Damage . | . . . . . . . Projectiles . | . . . . . . . Explosions . | . . . . . . . Melee . | . . . . . . . Knockbacks . | . . . . . . . Impact . | . . . . . . . Kinetic . | . . . . . . . Secondary . | . . . . . . . Self-Inflicted Damage 8 | . 8 . . . . . Shots 1 | . 1 . . . . . Rammed . | . . . . . . . Targets Rammed . | . . . . . . . Kicked . | . . . . . . . Crushed . | . . . . . . . Highest Temperature 288 | . 51 78 84 288 241 182 Average Temperature 85 | . 29 46 34 160 109 94 Received Heat Transfer 222 | . 69 . 9 72 . 72 Effects 1 | . . . . 1 . . Energy Bleed 1 | . . . . 1 . . Siege Activations . | . . . . . . . Robots Corrupted . | . . . . . . . Combat Hostiles . | . . . . . . . Parts Fried . | . . . . . . . Impact Corruptions . | . . . . . . . Robots Melted . | . . . . . . . Combat Hostiles . | . . . . . . . Parts Melted . | . . . . . . . Heat Transferred 1629 | . 703 148 259 519 . . Parts Sabotaged . | . . . . . . . Parts Stolen . | . . . . . . . Parts Stripped . | . . . . . . . Power Chain Reactions . | . . . . . . . Alert | -11 -10 -10 -9 -9 -9 -8 ------- Run | Yrd Mat Min Mat Min Exi Min Peak Influence 294 | . 294 211 241 182 . 105 Initial 96 | . . 96 69 79 . . Average 93 | . 152 135 129 58 . 67 Maximum Alert Level 1 | . 1 1 1 . . . Low Security (%) 87 | 100 56 83 85 100 . 100 Level 1 12 | . 43 16 14 . . . Level 2 . | . . . . . . . Level 3 . | . . . . . . . Level 4 . | . . . . . . . Level 5 . | . . . . . . . High Security . | . . . . . . . Max Security . | . . . . . . . Squads Dispatched 2 | . . . 1 1 . . Investigation . | . . . . . . . Extermination . | . . . . . . . Reinforcement 1 | . . . 1 . . . Assault 1 | . . . . 1 . . Garrison . | . . . . . . . Intercept . | . . . . . . . Searches Triggered . | . . . . . . . Construction Impeded . | . . . . . . . Haulers Reinforced . | . . . . . . . Active Scanning Responses . | . . . . . . . Cargo Convoy Interrupts . | . . . . . . . Stealth | -11 -10 -10 -9 -9 -9 -8 --------- Run | Yrd Mat Min Mat Min Exi Min Distress Signals 1 | . 1 . . . . . Communications Jammed . | . . . . . . . Distress Signals . | . . . . . . . Times Spotted 44 | . 10 5 6 14 . 9 Peak Tracking Total 5 | . 5 3 2 3 . 3 Tactical Retreats 4 | . 1 1 . 2 . . Traps | -11 -10 -10 -9 -9 -9 -8 ------- Run | Yrd Mat Min Mat Min Exi Min Traps Triggered . | . . . . . . . Indirectly . | . . . . . . . Trap Hack Attempts . | . . . . . . . Triggered . | . . . . . . . Disarmed . | . . . . . . . Reprogrammed . | . . . . . . . Reused . | . . . . . . . Traps Extracted . | . . . . . . . Installed . | . . . . . . . Triggered . | . . . . . . . Machines | -11 -10 -10 -9 -9 -9 -8 ---------- Run | Yrd Mat Min Mat Min Exi Min Machines Disabled . | . . . . . . . Max in Single Turn . | . . . . . . . Machines Repaired . | . . . . . . . Machines Dismantled . | . . . . . . . Machines Sabotaged . | . . . . . . . Overloaded Fab Kills . | . . . . . . . Hacking | -11 -10 -10 -9 -9 -9 -8 --------- Run | Yrd Mat Min Mat Min Exi Min Machines Accessed 7 | . 3 . 2 . 2 . Terminals 4 | . 2 . 2 . . . Fabricators . | . . . . . . . Repair Stations . | . . . . . . . Recycling Units 1 | . 1 . . . . . Scanalyzers . | . . . . . . . Garrison Access . | . . . . . . . Total Hacks 19 | . 6 . 4 . 9 . Successful 14 | . 2 . 3 . 9 . Failed 5 | . 4 . 1 . . . Catastrophic 1 | . 1 . . . . . Database Lockouts . | . . . . . . . Manual 4 | . 2 . 1 . 1 . Terminals 9 | . 5 . 4 . . . Fabricators . | . . . . . . . Repair Stations . | . . . . . . . Recycling Units 1 | . 1 . . . . . Scanalyzers . | . . . . . . . Garrison Access . | . . . . . . . Terminal Hacks 13 | . 1 . 3 . 9 . Record 12 | . 1 . 3 . 8 . Derelict Proto ID Bank 1 | . . . . . 1 . Fabricator Hacks . | . . . . . . . Repair Station Hacks . | . . . . . . . Recycling Unit Hacks 1 | . 1 . . . . . Report Inventory 1 | . 1 . . . . . Scanalyzer . | . . . . . . . Garrison Access Hacks . | . . . . . . . Unauthorized Hacks . | . . . . . . . Terminals . | . . . . . . . Fabricators . | . . . . . . . Repair Stations . | . . . . . . . Recycling Units . | . . . . . . . Scanalyzers . | . . . . . . . Garrison Access . | . . . . . . . Data Cores Recovered . | . . . . . . . Used . | . . . . . . . Hacking Detections 4 | . 3 . 1 . . . Full Trace Events 2 | . 2 . . . . . Feedback Events . | . . . . . . . Feedback Blocked . | . . . . . . . Robot Schematics Acquired . | . . . . . . . Robots Built . | . . . . . . . Authchips . | . . . . . . . Time . | . . . . . . . Total Robot Build Rating . | . . . . . . . Part Schematics Acquired . | . . . . . . . Parts Built . | . . . . . . . Authchips . | . . . . . . . Time . | . . . . . . . Total Part Build Rating . | . . . . . . . Parts Repaired . | . . . . . . . Time . | . . . . . . . Parts Recycled . | . . . . . . . Recycled Matter . | . . . . . . . Retrieved Matter . | . . . . . . . Retrieved Components . | . . . . . . . Parts Scanalyzed . | . . . . . . . Part Schematics Acquired . | . . . . . . . Parts Damaged . | . . . . . . . Bothacking | -11 -10 -10 -9 -9 -9 -8 ------------ Run | Yrd Mat Min Mat Min Exi Min Used RIF Installer . | . . . . . . . Robots Hacked . | . . . . . . . Non-combat . | . . . . . . . Combat . | . . . . . . . Robot Hacks Applied . | . . . . . . . Relay Couplers Released . | . . . . . . . Fabnet Peak Effective % . | . . . . . . . Robots Rewired . | . . . . . . . Allies Hacked . | . . . . . . . Hacks Repelled . | . . . . . . . Allies | -11 -10 -10 -9 -9 -9 -8 -------- Run | Yrd Mat Min Mat Min Exi Min Total Allies 4 | . . . . 4 . . Largest Group 4 | . . . . 4 . . Highest-Rated Group 71 | . . . . 71 . . Highest-Rated Ally 31 | . . . . 31 . . Total Orders . | . . . . . . . Ally Attacks 37 | . . . . 37 . . Total Damage 429 | . . . . 429 . . Kills 5 | . . . . 5 . . Allies Corrupted . | . . . . . . . Allies Melted . | . . . . . . . Intel | -11 -10 -10 -9 -9 -9 -8 ------- Run | Yrd Mat Min Mat Min Exi Min Robot Analysis Total . | . . . . . . . Derelict Logs Recovered 2 | . . 1 . 1 . . Drone Launches . | . . . . . . . Drone Recoveries . | . . . . . . . Exploration | -11 -10 -10 -9 -9 -9 -8 ------------- Run | Yrd Mat Min Mat Min Exi Min Turns Passed 1628 | 25 259 152 123 605 352 112 Spaces Moved 2408 | 38 390 327 301 835 407 110 Core 1206 | 38 258 . . 501 407 2 Treads . | . . . . . . . Legs . | . . . . . . . Wheels . | . . . . . . . Hover . | . . . . . . . Flight 1202 | . 132 327 301 334 . 108 Fastest Speed 31 | 50 37 37 31 31 50 34 Average Speed 48 | 50 45 37 31 42 86 37 Slowest Speed 150 | 50 50 37 31 100 100 150 Overloaded Moves . | . . . . . . . Propulsion Burnouts . | . . . . . . . Robots Hopped 3 | . . . . 2 . 1 Cave-ins Triggered 1 | . . . . 1 . . Exploration Rate (%) 53 | 3 73 77 36 98 71 16 Regions Visited 6 Branch Regions 4 Pre-discovered Areas 1 | . . . . . 1 . Known Exits Taken . | . . . . . . . Unknown Exits Taken 6 | 1 1 1 1 1 1 . Scrap Searched 4 | . . 1 . 2 . 1 Spaces Dug 5 | . . . . 5 . . Terrain Destroyed 50 | . 17 . . 33 . . Melee 1 | . . . . 1 . . Projectile 5 | . . . . 5 . . AOE 44 | . 17 . . 27 . . Terrain Rammed . | . . . . . . . Walls Destroyed . | . . . . . . . Machines Disabled . | . . . . . . . Actions | -11 -10 -10 -9 -9 -9 -8 --------- Run | Yrd Mat Min Mat Min Exi Min Total 2721 | 44 442 347 318 1021 408 141 Wait 164 | . 12 11 . 141 . . Move 2396 | 37 389 326 300 830 406 108 Hop 3 | . . . . 2 . 1 Pick Up 20 | 4 5 2 2 6 1 . Fast Attach 14 | . 2 1 1 4 . 6 Attach 12 | 2 2 . 4 3 1 . Detach 2 | 1 . . 1 . . . Swap 12 | . 4 . 2 4 . 2 Drop 11 | . 2 2 2 3 . 2 Fire 85 | . 26 5 6 26 . 22 Melee 2 | . . . . 2 . . Ram . | . . . . . . . Kick . | . . . . . . . Crush . | . . . . . . . Escape Stasis . | . . . . . . . Rewire . | . . . . . . . Trap . | . . . . . . . Miscellaneous . | . . . . . . . Route ------- -11/Scrapyard -10/Materials (discovered 3 exits: *Mat x2 / [*Min]) -10/Mines (discovered 2 exits: *Mat x2) -9/Materials (discovered 2 exits: Mat / [*Min]) -9/Mines (discovered 4 exits: *Mat x2 / *Exi / [*Zio]) -9/Exiles -8/Mines (discovered 1 exit: *Mat) History --------- Turn | Location | Event 5 | -11/Scrapyard | Discovered new exit (range 16) 26 | -11/Scrapyard | Entered Materials 147 | -10/Materials | Discovered new exit (range 16) 196 | -10/Materials | Discovered new exit (range 9) 251 | -10/Materials | Discovered new exit (range 15) 285 | -10/Materials | Entered Mines 317 | -10/Mines | Build established: Mutant 318 | -10/Mines | Learned location of 1 exit from Materials 321 | -10/Mines | Discovered new exit (range 16) 327 | -10/Mines | Joined a pair of Derelicts in attacking an 0b10 outpost 422 | -10/Mines | Received a Rocket Launcher from a helpful Derelict 428 | -10/Mines | Discovered new exit (range 10) 437 | -10/Mines | Entered Materials 437 | -9/Materials | Evolved 2 slots: Propulsion x2 438 | -9/Materials | Identified exit to Materials 548 | -9/Materials | Discovered new exit (range 16) 560 | -9/Materials | Entered Mines 561 | -9/Mines | Assembled infested the area 563 | -9/Mines | Received a Mining Laser from a helpful Derelict 598 | -9/Mines | A Derelict revealed a hidden shortcut to a safe place 606 | -9/Mines | Learned Materials interactive machine intel 625 | -9/Mines | Met a Derelict testing a Signal Generator 631 | -9/Mines | Discovered exit to Materials (range 9) 639 | -9/Mines | Assisted by bots powering up and referring to "LRC-V3" 719 | -9/Mines | Build established: Sprinter 753 | -9/Mines | Discovered exit to Materials (range 8) 777 | -9/Mines | Crushed by falling debris 814 | -9/Mines | Core integrity fell below 50% 838 | -9/Mines | Lost 3 allies 842 | -9/Mines | Lost 12 parts (1p4n3u4w) 863 | -9/Mines | Core integrity fell below 20% 1069 | -9/Mines | Build established: Mutant 1163 | -9/Mines | Deemed a non-threat by the Exiles lab entrance 1163 | -9/Mines | Discovered new exit (range 5) 1165 | -9/Mines | Entered Exiles 1180 | -9/Exiles | Met 8R-AWN 1187 | -9/Exiles | Met EX-HEX 1202 | -9/Exiles | Met EX-BIN 1208 | -9/Exiles | Aligned with FarCom system 1209 | -9/Exiles | Given EX-Vault access code 1220 | -9/Exiles | Opened EX-Vault 1224 | -9/Exiles | Found Cloak of Protection 1244 | -9/Exiles | Warned to stay clear of 0b10 Research branches 1274 | -9/Exiles | Met EX-DEC 1281 | -9/Exiles | Learned location of Zion (-7) 1319 | -9/Exiles | Discovered new exit (range 14) 1517 | -9/Exiles | Left Exiles lab with Cloak of Protection 1517 | -9/Exiles | Entered Mines 1556 | -8/Mines | Discovered exit to Materials (range 6) 1629 | -8/Mines | Destroyed by S-10 Pest with Light Assault Rifle Last Messages --------------- G-47 Trooper destroyed. K-01 Serf collects debris. Acquired Imp. Heat Sink. K-01 Serf collects debris. R-06 Scavenger collects Aluminum Leg. K-01 Serf collects debris. Imp. Heat Sink destroyed. Flight Unit destroyed. System corrupted by crushing effect (+3). K-01 Serf collects debris. B-36 Bruiser destroyed. K-01 Serf destroyed. Acquired 50 matter. Dropped Lgt. Ion Engine. Dropped Lgt. Nuclear Core. Acquired 30 matter. Acquired Lgt. Ion Engine. Acquired 17 matter. K-01 Serf collects debris. S-10 Pest destroyed. Map ----- +----------------------------------------------------+ | ?????????????????????????????????????????????????? | | ?????????????????????????????????????????????????? | | ?????????????????????????????????????????????????? | | ?????????????????????????????????????????????????? | | ?????????????????????????????????????????????????? | | ?????????????????????????????????????????????????? | | ?????????????????????????????????????????????????? | | ?????????????????????????????????????????????????? | | ?????????????????????????????????????????????????? | | ?????????????????????????????????????????????????? | | ?????????????????????????????????????????????????? | | ?????????????????????????????????????????????????? | | ?????????????????????????????????????????????????? | | ?????????????????????????????????????????????????? | | ?????????????????????????????????????????????????? | | ?????????????????????????????????????????????????? | | ??????????????????????????????###????????????????? | | ?????????????????????????????? #????????????????? | | ????????????gl???????????????# #????????????????? | | ?????????????????????????????# #????????????????? | | ?????????????????????????????# ????????????????? | | ?????????????????????????????# #????????????????? | | ?????????????????????????????# #????????????????? | | ?????????????????????????????# #????????????????? | | ??????????????# #######?# #????????????????? | | ?????????????#u *%= @ #?# #????????????????? | | ???????????# s s #### ### #????????????????? | | ??????????# ?????????# k #????????????????? | | ?????????????????????????##### ###??????????????? | | ?????????????????????????????# % ###????????????? | | ????????????????????????????## ###?#####????? | | ???????????????????????????## ### * ##???? | | ???????????????????????????# * #???? | | ???????????????????????????# < *%== #???? | | ???????????????????????????# #### !##???? | | ???????????????????????????# ###??# #????? | | ???????????????????????????## ##????# #????? | | ????????????????????????????# ##????## #????? | | ????????????????????????????# ##?##### % #????? | | ????????????????????????????# ##??# ##???? | | ????????????????????????????## #####/% ###?? | | ?????????????????????????????# #### ### | | ?????????????????????????????# ######??#### | | ????????????????????????????# ##??????????## | | ???????????????????????????# ##????????????##### | | ???????????????????????????## #??????????????????? | | ????????????????????????????##???????????????????? | | ?????????????????????????????????????????????????? | | ?????????????????????????????????????????????????? | | ?????????????????????????????????????????????????? | +----------------------------------------------------+ Best States ------------- Heat Dissipation 56 Energy Generation 12 Energy Capacity 265 Matter Stores 300 Matter Capacity 300 Sight Range 16 Terrain Scan Density 10 ECM Strength 1 Resistance: KI 20 Resistance: TH 20 Resistance: EX 20 Resistance: EM 20 Resistance: I 20 Resistance: S 20 Resistance: P 20 Propulsion Shielding 33 Evasion (%) 63 Targeting Accuracy 5 Offensive Hacking 10 Item Schematics ----------------- None Robot Schematics ------------------ None Fabricated ------------ Nothing Alien Tech Used ----------------- None Achievements -------------- None Challenges ------------ None Game ------ Seed AssaultDamperDatajack Manual? 0 Play Time 00:23:12 Cumulative 31.4 hours Start 2024.08.19 @ 14:20:16 End 2024.08.19 @ 14:42:06 Sessions 1 Manual Loads 0 Difficulty Adventurer Special Mode None Game No. 36 Rogue 13 Adventurer 23 Explorer 0 Win Type - Total 0 Types 0/0/0/0/0/0/0/0/0 Lore% 28 Gallery% 37 Achievement% 31 Wizard Run 0 Options --------- Layout 1 ASCII 0 Keyboard 0 Movement Mouse Keybinds 0 Fullscreen 1 Font 24/Smallcaps Map View 50x35 Zoom Use 0% Tactical HUD 0 Map Filters NONE Filters NONE Steam 1 RUN: 301c86e1-6281-48ab-8132-423c85f36e5b